Cogmind - Beta 16 --- EXPLORER MODE // 2026.01.16 @ 12:17:31 Player: K.K.Y. Result: Destroyed by H-66 Slayer with Gauss Rifle Performance ------------- Evolutions (4) 2000 Regions Visited (6) 1200 Robots Destroyed (136) 680 Value Destroyed (5181) 5181 Prototype IDs (21) 420 Alien Tech Used (0) 0 Bonus (1959) 1959 TOTAL SCORE: 11440 Bonus ------- Follower Combat Kills 20 Delivered SUBCON Basin 2000 Friendly Fire -61 Cogmind --------- Core Integrity 0/850 Matter 189/300 Energy 490/490 System Corruption 3% Temperature Danger (420) Movement Treading (250) Ox1 Location -6/Factory Parts ------- > --- POWER (2) -------- Reinforced Deuterium Engine Angular Momentum Engine > --- PROPULSION (5) --- Armored Treads Armored Treads Armored Treads Armored Treads Armored Treads > --- UTILITY (7) ------ Huge Storage Unit Advanced ECM Suite EM Disruption Field Dynamic Insulation System > --- WEAPON (2) ------- Ion Burst Cannon Ion Burst Cannon > --- INVENTORY (25) --- Armored Treads Armored Treads Armored Treads Huge Storage Unit Machine Analyzer Experimental Sensor Array Advanced Signal Interpreter Improved Terrain Scanner Advanced Terrain Scanner Core Analyzer EM Disruption Field EM Disruption Field EM Disruption Field Hacking Suite System Shield Makeshift System Shield Component Analysis Suite Tech Extrapolator Improved System Restoration Module Improved Lightning Gun Ion Burst Cannon Multitool Chainsword Peak State ------------ > --- POWER ------------ Light Angular Momentum Engine Fission Core > --- PROPULSION ------- Medium Treads Improved Medium Treads Improved Medium Treads Improved Medium Treads Improved Medium Treads > --- UTILITY ---------- Advanced Heat Sink Huge Storage Unit Structural Scanner Layered Medium Armor Plating EM Shield Dynamic Insulation System Dynamic Insulation System > --- WEAPON ----------- Ion Burst Cannon Ion Burst Cannon > --- INVENTORY -------- Huge Storage Unit Machine Analyzer Improved Sensor Array Experimental Sensor Array Advanced Signal Interpreter Improved Terrain Scanner Advanced Terrain Scanner Advanced ECM Suite EM Disruption Field EM Disruption Field EM Disruption Field Hacking Suite System Shield Makeshift System Shield Component Analysis Suite Tech Extrapolator Improved System Restoration Module Improved Lightning Gun Ion Burst Cannon Ion Burst Cannon Ion Burst Cannon Magnetic Acceleration Cannon Magnetic Acceleration Cannon Multitool Chainsword [Rating: 82] Favorites ----------- Power Light Nuclear Core Engine Makeshift Power Source Power Core Light Nuclear Core Propulsion Light Treads Treads Light Treads Leg Carbon-fiber Leg Hover Unit Improved Gravmag System Utility Structural Scanner Device Structural Scanner Storage Large Storage Unit Protection Medium Armor Plating Weapon Particle Cannon Energy Gun Precision Shock Rifle Energy Cannon Particle Cannon Ballistic Gun Flak Gun Ballistic Cannon Magnetic Acceleration Cannon Build | -11 -10 -10 -10 -9 -9 -6 ------- Run | Yrd Mat Min Sub Rec Scr Fac Slots Evolved 9 | . 1 . . . . 8 Power 1 | . . . . . . 1 Propulsion 3 | . . . . . . 3 Utility 5 | . 1 . . . . 4 Weapon . | . . . . . . . Parts Attached 89 | 7 7 3 11 1 3 57 Power 15 | 1 1 1 2 . . 10 Engine 11 | 1 1 . 1 . . 8 Core 4 | . . 1 1 . . 2 Reactor . | . . . . . . . Propulsion 21 | 2 . 2 2 1 2 12 Treads 19 | 2 . 2 2 1 2 10 Leg 1 | . . . . . . 1 Wheel . | . . . . . . . Hover 1 | . . . . . . 1 Flight . | . . . . . . . Utility 33 | 2 4 . 5 . 1 21 Device 19 | . 1 . 2 . . 16 Storage 5 | 1 1 . 1 . . 2 Processor . | . . . . . . . Hackware . | . . . . . . . Protection 9 | 1 2 . 2 . 1 3 Artifact . | . . . . . . . Weapon 20 | 2 2 . 2 . . 14 Energy Gun 2 | . . . . . . 2 Energy Cannon 13 | . 2 . 2 . . 9 Ballistic Gun 3 | 2 . . . . . 1 Ballistic Cannon 2 | . . . . . . 2 Launcher . | . . . . . . . Special Weapon . | . . . . . . . Impact Weapon . | . . . . . . . Slashing Weapon . | . . . . . . . Piercing Weapon . | . . . . . . . Special Melee Weapon . | . . . . . . . Unidentified Prototypes 5 | . . . . . . 5 Parts Lost 25 | . . . 4 . . 21 Power 3 | . . . 1 . . 2 Propulsion 6 | . . . 1 . . 5 Utility 10 | . . . 1 . . 9 Weapon 6 | . . . 1 . . 5 Highest Loss Streak 10 | . . . 1 . . 10 To Critical Strikes 2 | . . . 1 . . 1 Average Backups 16 | 2 9 15 14 6 15 23 Power . | . 1 1 . . . . Propulsion 1 | . . 3 2 . . . Utility 9 | . 4 7 7 4 10 14 Weapon 3 | 1 3 3 2 1 3 6 Tool/Special . | . . . . . . . Unused Backups 44 | . 2 . 5 1 3 33 Power 1 | . . . . . . 1 Propulsion 3 | . . . . . . 3 Utility 25 | . 1 . 3 1 3 17 Weapon 13 | . 1 . 1 . . 11 Tool/Special 2 | . . . 1 . . 1 Average Slot Usage (%) 93 | . 88 100 99 100 100 85 Engine 6 | . 12 . . 12 12 9 Core 4 | . . 11 11 . . . Treads 25 | . 25 25 25 25 25 25 Device 18 | . 5 12 20 12 12 26 Storage 9 | . 12 12 12 12 12 6 Protection 7 | . 17 12 4 12 12 4 Energy Cannon 18 | . 11 25 25 25 25 9 Peak Build Rating 82 | 7 15 18 37 38 31 82 Average Rating 34 | 6 11 17 18 29 28 63 On Entrance 18 | . 7 15 18 37 21 31 Avg Prop Armor Cover (%) . | . . . . . . . Naked Turns . | . . . . . . . Heaviest Build 135 | 20 47 41 57 57 61 135 Greatest Support 148 | 40 40 40 40 43 58 148 Greatest Overweight (x) 30 | 3 1 1 1 1 1 30 Average Overweight (x) . | . . 1 . . . . Largest Inventory Capacity 25 | 10 15 15 20 20 20 25 Average Capacity 18 | 9 12 15 15 17 17 23 Most Carried 25 | 7 15 15 20 20 18 25 Average Carried 17 | 2 9 14 14 14 15 23 Final Capacity 25 | 10 15 15 20 15 20 25 Final Carried 23 | 3 15 15 20 11 18 23 Class Distribution -------------------- 72% | Hacker-Mutant 14% | Commander-Mutant 13% | Scavenger-Mutant Dominant Class ---------------- Hacker-Mutant | -10/Materials Hacker-Mutant | -10/Mines Hacker-Mutant | -10/Subcaves Commander-Mutant | -9/Recycling Commander-Mutant | -9/Scraptown Hacker-Mutant | -6/Factory Resources | -11 -10 -10 -10 -9 -9 -6 ----------- Run | Yrd Mat Min Sub Rec Scr Fac Matter Collected 1854 | 360 100 30 145 20 40 1159 Remotely . | . . . . . . . Salvage Created 5730 | 197 385 95 771 236 . 4046 Parts 249 | 13 22 13 48 10 . 143 Haulers Intercepted 6 | . 1 . . . . 5 Recyclers Shooed . | . . . . . . . Parts Field Recycled . | . . . . . . . Retrieved Matter . | . . . . . . . Parts Self-Destructed . | . . . . . . . Prevented . | . . . . . . . Parts Restored . | . . . . . . . Kills | -11 -10 -10 -10 -9 -9 -6 ------- Run | Yrd Mat Min Sub Rec Scr Fac Combat Hostiles Destroyed 114 | . 8 6 17 5 . 78 Guns 4 | . 2 . . . . 2 Cannons 103 | . 6 6 16 4 . 71 Classes Destroyed 23 | 2 4 1 3 3 . 10 Worker 4 | . . 1 . . . 3 Builder 1 | . . . . . . 1 Tunneler 6 | 6 . . . . . . Hauler 6 | . 1 . . . . 5 Recycler 2 | 1 . . . . . 1 Mechanic 1 | . . . . . . 1 Operator 3 | . . . . . . 3 Turret 2 | . . . 2 . . . Watcher 6 | . 1 . . . . 5 Swarmer 17 | . 2 6 4 . . 5 Grunt 39 | . 6 . . . . 33 Brawler 2 | . . . . . . 2 Duelist 2 | . . . . . . 2 Protector 1 | . . . . 1 . . Sentry 12 | . . . . 3 . 9 Demolisher 2 | . . . . . . 2 Specialist 2 | . . . . . . 2 Hunter 3 | . . . . . . 3 Programmer 11 | . . . . 1 . 10 Behemoth 1 | . . . . . . 1 Artisan 3 | . . . 3 . . . Subdweller 13 | . . . 13 . . . Assembled 9 | . . . . . . 9 Best Kill Streak 8 | 5 2 2 6 2 . 8 Combat Bots Only 8 | . 2 2 4 2 . 8 Max Kills in Single Turn 2 | 1 1 2 1 1 . 2 Gunslinging . | . . . . . . . Exploded . | . . . . . . . Melee . | . . . . . . . Uniques/NPCs Destroyed . | . . . . . . . Combat | -11 -10 -10 -10 -9 -9 -6 -------- Run | Yrd Mat Min Sub Rec Scr Fac Hostile Shots Fired 1187 | . 27 20 113 8 . 1019 Missed 382 | . 9 8 35 2 . 328 Hits 805 | . 18 12 78 6 . 691 Melee 4 | . . . . . . 4 Projectile 801 | . 18 12 78 6 . 687 AOE 12 | . . . . . . 12 Critical Strikes 20 | . . . 3 1 . 16 Damage Taken 6605 | . 145 61 876 57 . 5466 Core 1008 | . 34 . 107 9 . 858 Absorbed by Shields . | . . . . . . . Ignored by Resistances 4187 | . 93 43 526 34 . 3491 Regen/Repaired (Parts) 175 | . . . . . . 175 Core Remaining (%) 70 | 100 . . . . 40 . Volleys Fired 397 | 15 18 9 122 10 . 223 Largest 2 | 2 2 2 2 2 . 2 Hottest 200 | 40 136 136 136 136 . 200 Shots Fired 731 | 30 36 18 243 18 . 386 Gun 76 | 30 10 . . . . 36 Cannon 655 | . 26 18 243 18 . 350 Launcher . | . . . . . . . Special . | . . . . . . . Kinetic 133 | 30 10 . . . . 93 Thermal 598 | . 26 18 243 18 . 293 Explosive . | . . . . . . . Electromagnetic . | . . . . . . . Robot Hit Streak 48 | 17 27 29 35 14 . 48 Robot Miss Streak 5 | 1 1 2 1 1 . 5 Penetration Max . | . . . . . . . Secondary Targets . | . . . . . . . Shots Hit Robots 511 | 24 29 9 114 12 . 323 Core Hits 302 | 7 14 7 35 4 . 235 Critical Kills 7 | . 1 . 1 1 . 4 Critical Parts Destroyed . | . . . . . . . Critical Strikes 12 | . 1 . 1 1 . 9 Meltdown 6 | . . . 1 1 . 4 Destroy 1 | . 1 . . . . . Blast 5 | . . . . . . 5 Melee Attacks . | . . . . . . . Impact . | . . . . . . . Slashing . | . . . . . . . Piercing . | . . . . . . . Sneak Attacks . | . . . . . . . Combat Hostiles . | . . . . . . . Follow-up Attacks . | . . . . . . . Damage Inflicted 14824 | 302 568 225 2316 244 . 11169 Guns 1201 | 302 119 . . . . 780 Cannons 13623 | . 449 225 2316 244 . 10389 Explosions . | . . . . . . . Melee . | . . . . . . . Ramming . | . . . . . . . Kinetic 2689 | 302 119 . . . . 2268 Thermal 12135 | . 449 225 2316 244 . 8901 Explosive . | . . . . . . . Electromagnetic . | . . . . . . . Impact . | . . . . . . . Slashing . | . . . . . . . Piercing . | . . . . . . . Highest Corruption 3 | . . . . . . 3 Average Corruption 2 | . . . . . . 2 Corruption Purged 1 | . . . . . . 1 Corruption Blocked . | . . . . . . . Effects 52 | . . . . . . 52 Message Errors 15 | . . . . . . 15 Matter Fused 15 | . . . . . . 15 Heat Flow Errors 7 | . . . . . . 7 Energy Discharges 7 | . . . . . . 7 Parts Rejected 1 | . . . . . . 1 Data Loss (minor) 3 | . . . . . . 3 Data Loss (major) 1 | . . . . . . 1 Alerts 1 | . . . . . . 1 Weapon Failures 2 | . . . . . . 2 Overload Shots . | . . . . . . . Overflow Damage 120 | . . 1 18 . . 101 Projectiles 120 | . . 1 18 . . 101 Explosions . | . . . . . . . Melee . | . . . . . . . Knockbacks 12 | . . . . . . 12 Impact . | . . . . . . . Kinetic 9 | . . . . . . 9 Secondary 3 | . . . . . . 3 Self-Inflicted Damage . | . . . . . . . Shots . | . . . . . . . Rammed . | . . . . . . . Targets Rammed . | . . . . . . . Kicked . | . . . . . . . Crushed . | . . . . . . . Highest Temperature 467 | . 283 144 162 423 . 467 Average Temperature 109 | . 99 56 47 140 . 114 Received Heat Transfer 2779 | . 120 9 276 9 . 2365 Effects 11 | . . . . 2 . 9 Shutdowns 5 | . . . . 1 . 4 Interference 5 | . . . . 1 . 4 Matter Decay 1 | . . . . . . 1 Siege Activations . | . . . . . . . Martial Activations . | . . . . . . . Shielding Activations . | . . . . . . . Robots Disrupted . | . . . . . . . Combat Hostiles . | . . . . . . . Robots Corrupted . | . . . . . . . Combat Hostiles . | . . . . . . . Parts Fried . | . . . . . . . Impact Corruptions . | . . . . . . . Robots Melted 7 | . . . 1 1 . 5 Combat Hostiles 7 | . . . 1 1 . 5 Parts Melted 36 | . 1 . 7 1 . 27 Heat Transferred 17067 | . 777 407 4181 393 . 11309 Parts Sabotaged . | . . . . . . . Parts Stolen . | . . . . . . . Parts Stripped . | . . . . . . . Power Chain Reactions . | . . . . . . . Alert | -11 -10 -10 -10 -9 -9 -6 ------- Run | Yrd Mat Min Sub Rec Scr Fac Maximum Alert Level . | . . . . . . . Low Security (%) 100 | 100 100 100 . 100 . 100 Level 1 . | . . . . . . . Level 2 . | . . . . . . . Level 3 . | . . . . . . . Level 4 . | . . . . . . . Level 5 . | . . . . . . . High Security . | . . . . . . . Max Security . | . . . . . . . Peak Influence 126 | 10 50 52 . 29 . 126 Initial . | . . . . . . . Average 8 | 1 4 3 . . . 13 Influence Increases 2729 | 35 238 176 210 108 . 1962 Destroy 0b10 Robot/C 1880 | . 160 120 120 80 . 1400 Destroy 0b10 Robot/NC 150 | 35 10 5 . 5 . 95 Destroy Leader 474 | . 44 30 . . . 400 Allied During Kill 13 | . . 6 . 4 . 3 Trap Triggered on 0b10 10 | . 10 . . . . . Successful Hack 32 | . 10 . . 19 . 3 Disable Machine 12 | . 4 . . . . 8 Destroy Structure 23 | . . . . . . 23 Lose Combat Pursuer 135 | . . 15 90 . . 30 Influence Decreases 2664 | 35 238 176 210 108 . 1897 Time Decay 2515 | 35 238 176 190 108 . 1768 Lost Part 85 | . . . . . . 85 Lost Ally 64 | . . . 20 . . 44 Squads Dispatched 29 | . . . . . . 29 Investigation 4 | . . . . . . 4 Extermination 11 | . . . . . . 11 Reinforcement 8 | . . . . . . 8 Assault 2 | . . . . . . 2 Garrison 4 | . . . . . . 4 Intercept . | . . . . . . . Searches Triggered . | . . . . . . . Construction Impeded 1 | . . . . . . 1 Haulers Reinforced 2 | . . . . . . 2 Active Scanning Responses . | . . . . . . . Cargo Convoy Interrupts 1 | . . . . . . 1 Stealth | -11 -10 -10 -10 -9 -9 -6 --------- Run | Yrd Mat Min Sub Rec Scr Fac Distress Signals 5 | . 1 . . . . 4 Communications Jammed . | . . . . . . . Distress Signals . | . . . . . . . Times Spotted 156 | . 13 7 22 4 . 110 Peak Tracking Total 6 | . 4 2 4 2 . 6 Tactical Retreats 9 | . . 1 3 . . 5 ECM-based Alert Blocks 2 | . . . . . . 2 Traps | -11 -10 -10 -10 -9 -9 -6 ------- Run | Yrd Mat Min Sub Rec Scr Fac Traps Triggered 2 | . . . 1 . . 1 Indirectly . | . . . . . . . Trap Hack Attempts . | . . . . . . . Triggered . | . . . . . . . Disarmed . | . . . . . . . Reprogrammed 11 | . 11 . . . . . Reused 1 | . 1 . . . . . Traps Extracted . | . . . . . . . Installed . | . . . . . . . Triggered 1 | . 1 . . . . . Machines | -11 -10 -10 -10 -9 -9 -6 ---------- Run | Yrd Mat Min Sub Rec Scr Fac Machines Disabled 6 | . 1 . 3 . . 2 Max in Single Turn 1 | . 1 . 1 . . 1 Garrison Access 2 | . . . . . . 2 Machines Repaired . | . . . . . . . Machines Dismantled . | . . . . . . . Machines Sabotaged . | . . . . . . . Overloaded Fab Kills . | . . . . . . . Hacking | -11 -10 -10 -10 -9 -9 -6 --------- Run | Yrd Mat Min Sub Rec Scr Fac Machines Accessed 31 | . 9 . 4 11 . 7 Terminals 17 | . 8 . . 6 . 3 Fabricators . | . . . . . . . Repair Stations 1 | . . . . . . 1 Recycling Units 6 | . 1 . . 5 . . Scanalyzers 2 | . . . . . . 2 Garrison Access 1 | . . . . . . 1 Total Hacks 79 | . 24 . 9 26 . 20 Successful 65 | . 21 . 9 23 . 12 Failed 14 | . 3 . . 3 . 8 Catastrophic . | . . . . . . . Database Lockouts . | . . . . . . . Manual 26 | . 13 . . 10 . 3 Terminals 46 | . 22 . . 16 . 8 Fabricators . | . . . . . . . Repair Stations 2 | . . . . . . 2 Recycling Units 12 | . 2 . . 10 . . Scanalyzers 8 | . . . . . . 8 Garrison Access 2 | . . . . . . 2 Terminal Hacks 30 | . 11 . 9 8 . 2 Record 9 | . 2 . 6 . . 1 Part Schematic 7 | . . . . 6 . 1 Robot Analysis 4 | . 3 . . 1 . . Prototype ID Bank 2 | . 1 . . 1 . . Open Door 1 | . . . 1 . . . Locate Traps 1 | . 1 . . . . . Reprogram Traps 4 | . 4 . . . . . Proto ID Catalog 1 | . . . 1 . . . Release Object 1 | . . . 1 . . . Fabricator Hacks . | . . . . . . . Repair Station Hacks 2 | . . . . . . 2 Scan Component 1 | . . . . . . 1 Repair 1 | . . . . . . 1 Recycling Unit Hacks 6 | . 1 . . 5 . . Retrieve Components 6 | . 1 . . 5 . . Scanalyzer 6 | . . . . . . 6 Insert Component 3 | . . . . . . 3 Analyze 3 | . . . . . . 3 Garrison Access Hacks . | . . . . . . . Unauthorized Hacks 21 | . 9 . . 10 . 2 Terminals 15 | . 8 . . 5 . 2 Botnet 15 | . 8 . . 5 . 2 Fabricators . | . . . . . . . Repair Stations . | . . . . . . . Recycling Units 6 | . 1 . . 5 . . Reject 6 | . 1 . . 5 . . Scanalyzers . | . . . . . . . Garrison Access . | . . . . . . . Data Cores Recovered . | . . . . . . . Used . | . . . . . . . Hacking Detections 17 | . 7 . . 4 . 6 Full Trace Events 5 | . 1 . . . . 4 Feedback Events . | . . . . . . . Feedback Blocked . | . . . . . . . Robot Schematics Acquired . | . . . . . . . Robots Built . | . . . . . . . Authchips . | . . . . . . . Time . | . . . . . . . Total Robot Build Rating . | . . . . . . . Part Schematics Acquired 9 | . . . . 6 . 3 Parts Built . | . . . . . . . Authchips . | . . . . . . . Time . | . . . . . . . Total Part Build Rating . | . . . . . . . Part Studies Acquired . | . . . . . . . Parts Repaired 1 | . . . . . . 1 Time 50 | . . . . . . 50 Parts Recycled . | . . . . . . . Recycled Matter . | . . . . . . . Retrieved Matter . | . . . . . . . Retrieved Components 20 | . 8 . . 12 . . Parts Scanalyzed 2 | . . . . . . 2 Part Schematics Acquired 2 | . . . . . . 2 Parts Damaged . | . . . . . . . Bothacking | -11 -10 -10 -10 -9 -9 -6 ------------ Run | Yrd Mat Min Sub Rec Scr Fac Used RIF Installer . | . . . . . . . Robots Hacked . | . . . . . . . Non-combat . | . . . . . . . Combat . | . . . . . . . Robot Hacks Applied . | . . . . . . . Relay Couplers Released 4 | . . . . . . 4 Machine Destruction 4 | . . . . . . 4 Fabnet Peak Effective % . | . . . . . . . Robots Rewired 10 | . . . . 10 . . Allies Hacked . | . . . . . . . Hacks Repelled . | . . . . . . . Allies | -11 -10 -10 -10 -9 -9 -6 -------- Run | Yrd Mat Min Sub Rec Scr Fac Total Allies 13 | . . 3 . 10 . . Largest Group 10 | . . 3 3 10 10 10 Highest-Rated Group 96 | . . 40 40 96 96 96 Highest-Rated Ally 16 | . . 16 16 15 15 15 Total Orders . | . . . . . . . Ally Attacks 17 | . . 4 3 2 . 8 Total Damage 240 | . . 27 46 45 . 122 Kills 1 | . . . . . . 1 Allies Corrupted . | . . . . . . . Allies Melted . | . . . . . . . Intel | -11 -10 -10 -10 -9 -9 -6 ------- Run | Yrd Mat Min Sub Rec Scr Fac Active Infowar (turns) 12363 | . . . 3922 1906 1066 5469 Sensors 1244 | . . . . . . 1244 Terrain 67 | . . . . . . 67 Structural 11052 | . . . 3922 1906 1066 4158 ECM 988 | . . . . . . 988 Robot Analysis Total 4 | . 3 . . 1 . . Derelict Logs Recovered 5 | . . 2 3 . . . Drone Launches . | . . . . . . . Drone Recoveries . | . . . . . . . Exploration | -11 -10 -10 -10 -9 -9 -6 ------------- Run | Yrd Mat Min Sub Rec Scr Fac Turns Passed 17973 | 266 1819 1825 5072 1906 1066 6019 Spaces Moved 7131 | 83 634 734 2133 904 514 2129 Core 25 | 23 . . . . . 2 Treads 7094 | 60 634 734 2133 904 514 2115 Legs 10 | . . . . . . 10 Wheels . | . . . . . . . Hover 2 | . . . . . . 2 Flight . | . . . . . . . Fastest Speed 50 | 50 160 240 160 160 160 160 Average Speed 194 | 138 202 240 177 195 191 194 Slowest Speed 1550 | 200 240 240 250 250 240 1550 Overloaded Moves . | . . . . . . . Propulsion Burnouts . | . . . . . . . Robots Hopped . | . . . . . . . Potential Cave-ins 1 | . . . 1 . . . Cave-ins Triggered . | . . . . . . . Exploration Rate (%) 70 | 4 95 102 94 99 48 54 Regions Visited 6 Branch Regions 4 Pre-discovered Areas 2 | . . 1 1 . . . Known Exits Taken 6 | 1 1 1 1 1 1 . Unknown Exits Taken . | . . . . . . . Scrap Searched 10 | . . . 4 . 6 . Spaces Dug 33 | . . . 31 . . 2 Terrain Destroyed 48 | . . . 34 . . 14 Melee . | . . . . . . . Projectile 48 | . . . 34 . . 14 AOE . | . . . . . . . Terrain Rammed . | . . . . . . . Walls Destroyed . | . . . . . . . Machines Disabled . | . . . . . . . Actions | -11 -10 -10 -10 -9 -9 -6 --------- Run | Yrd Mat Min Sub Rec Scr Fac Total 10485 | 204 1140 779 3170 1027 597 3568 Wait 2645 | 91 453 32 878 64 62 1065 Move 7125 | 82 633 733 2132 903 513 2129 Hop . | . . . . . . . Pick Up 92 | 9 19 1 8 7 12 36 Fast Attach 23 | 1 . . . . . 22 Attach 33 | 6 4 . 5 . . 18 Detach 9 | . 3 . 1 . . 5 Swap 48 | . 3 3 10 2 4 26 Drop 74 | . 7 1 14 2 6 44 Fire 397 | 15 18 9 122 10 . 223 Melee . | . . . . . . . Ram . | . . . . . . . Kick . | . . . . . . . Crush . | . . . . . . . Escape Stasis . | . . . . . . . Rewire 39 | . . . . 39 . . Trap . | . . . . . . . Miscellaneous . | . . . . . . . Route ------- -11/Scrapyard -10/Materials (discovered 4 exits: *Mat x2 / *Min / *Sub) -10/Mines (discovered 3 exits: *Mat x2 / *Sub) -10/Subcaves (discovered 4 exits: *Mat x2 / *Rec / *Scr) -9/Recycling (discovered 2 exits: *Fac / *Scr) -9/Scraptown -6/Factory (discovered 1 exit: *Fac) History --------- Turn | Location | Event 26 | -11/Scrapyard | Identified exit to Materials 26 | -11/Scrapyard | Discovered exit to Materials (range 15) 267 | -11/Scrapyard | Entered Materials 267 | -10/Materials | Evolved 1 slot: Utility x1 306 | -10/Materials | Build established: Hacker-Mutant 1050 | -10/Materials | Identified exit to Materials 1050 | -10/Materials | Discovered exit to Materials (range 4) 1432 | -10/Materials | Identified exit to Mines 1432 | -10/Materials | Discovered exit to Mines (range 10) 1798 | -10/Materials | Discovered exit to Materials (range 8) 1885 | -10/Materials | Identified exit to Subcaves 1885 | -10/Materials | Discovered exit to Subcaves (range 16) 2086 | -10/Materials | Entered Mines 2106 | -10/Mines | Found a damaged Exp. Sensor Array with a note attached 2116 | -10/Mines | Found Prototype Device 2314 | -10/Mines | Learned location of Storage (-9) 2532 | -10/Mines | Assisted by bots powering up and referring to "LRC-V3" 2757 | -10/Mines | Discovered exit to Materials (range 9) 2836 | -10/Mines | Discovered exit to Materials (range 7) 3695 | -10/Mines | Discovered exit to Subcaves (range 7) 3911 | -10/Mines | Entered Subcaves 3911 | -10/Subcaves | Accompanied by 3 allies 3912 | -10/Subcaves | Approached by a straggling Scientist 4862 | -10/Subcaves | Identified exit to Recycling 4862 | -10/Subcaves | Discovered exit to Recycling (range 12) 4951 | -10/Subcaves | Scientist uncovered a shortcut to Scraptown 5030 | -10/Subcaves | A swath of the cavern ceiling suddenly collapsed 5234 | -10/Subcaves | Identified exit to Materials 5234 | -10/Subcaves | Discovered exit to Materials (range 3) 5256 | -10/Subcaves | Learned Materials stockpile data 5577 | -10/Subcaves | Ambushed by angry Subdweller bent on revenge 5813 | -10/Subcaves | Shifting Twisted Machinery released Battle Rifle 5827 | -10/Subcaves | Shifting Twisted Machinery released Piercing Trap 6048 | -10/Subcaves | Shifting Twisted Machinery released Sub. Machine Gun 6048 | -10/Subcaves | Shifting Twisted Machinery released Riot Gun 6148 | -10/Subcaves | A swath of the cavern ceiling suddenly collapsed 6326 | -10/Subcaves | Disturbed a concealed Subdweller 6450 | -10/Subcaves | Visited 4L-MR0's lab 6706 | -10/Subcaves | Learned location of Zion (-6) 6912 | -10/Subcaves | Ambushed by Subdweller buried in earth 6917 | -10/Subcaves | Core integrity fell below 50% 7007 | -10/Subcaves | Discovered exit to Materials (range 12) 7099 | -10/Subcaves | Learned Materials stockpile data 7171 | -10/Subcaves | Ambushed by angry Subdweller bent on revenge 7356 | -10/Subcaves | Shifting Twisted Machinery released Piercing Trap 7357 | -10/Subcaves | Shifting Twisted Machinery released Flamer 8142 | -10/Subcaves | Visited Clippyterm 8146 | -10/Subcaves | Learned Factory garrison access intel 8840 | -10/Subcaves | Found SUBCON Basin 8983 | -10/Subcaves | Entered Recycling 9884 | -9/Recycling | Scanned before Scraplab entrance 9911 | -9/Recycling | Identified exit to Scraptown 9911 | -9/Recycling | Discovered exit to Scraptown (range 11) 9919 | -9/Recycling | Entered Scraplab 9944 | -9/Recycling | Build established: Commander-Mutant 10052 | -9/Recycling | Identified exit to Factory 10052 | -9/Recycling | Discovered exit to Factory (range 15) 10889 | -9/Recycling | Entered Scraptown 10889 | -9/Scraptown | Accompanied by 10 allies 11104 | -9/Scraptown | Visited Assassins FH 11137 | -9/Scraptown | Visited IN-MT5's Study 11148 | -9/Scraptown | Visited Bundlers 11269 | -9/Scraptown | Visited Cave Peace 11302 | -9/Scraptown | Visited Comm Corps 11312 | -9/Scraptown | Visited Awakened 11331 | -9/Scraptown | Visited Cyclists 11768 | -9/Scraptown | Identified exit to Factory 11768 | -9/Scraptown | Discovered exit to Factory (range 5) 11955 | -9/Scraptown | Entered Factory 11955 | -6/Factory | Accompanied by 10 allies 11955 | -6/Factory | Evolved 8 slots: Power x1, Propulsion x3, Utility x4 11956 | -6/Factory | Loaded intel: 3 garrison access locations 12150 | -6/Factory | Lost 3 allies 12219 | -6/Factory | Lost 3 allies 12476 | -6/Factory | Build established: Hacker-Mutant 12496 | -6/Factory | Identified exit to Factory 12496 | -6/Factory | Discovered exit to Factory (range 10) 12886 | -6/Factory | P-60 Hacker assimilated allied Scavenger 2a 13652 | -6/Factory | Spotted B-75 Beast 13655 | -6/Factory | Destroyed B-75 Beast 13962 | -6/Factory | Cargo convoy interrupted 13984 | -6/Factory | Build established: Scavenger-Mutant 14117 | -6/Factory | Allied Derelicts emerged from ambush trap array 14358 | -6/Factory | Assembled infested ambush trap array 14426 | -6/Factory | Destroyed 8 combat bots 14632 | -6/Factory | Repaired Imp. Medium Treads 16158 | -6/Factory | Garrison activated, responded to threat 16220 | -6/Factory | Lost 3 parts (2n1u) 16356 | -6/Factory | Build established: Hacker-Mutant 16462 | -6/Factory | Garrison activated, responded to threat 16492 | -6/Factory | Core integrity fell below 50% 16516 | -6/Factory | Lost 10 parts (2p2n4u2w) 16671 | -6/Factory | Identified Exp. Sensor Array 16799 | -6/Factory | Core integrity fell below 20% 17968 | -6/Factory | Lost 4 parts (2u2w) 17974 | -6/Factory | Destroyed by H-66 Slayer with Gauss Rifle Last Messages --------------- 17951_ Penetrated by Slug. 17951_ Core Analyzer melted. 17951_ Imp. Cooling System melted. 17951_ X-62 Marksman destroyed. 17951_ Slug penetrates Scanalyzer. 17953_ Penetrated by Slug. 17954_ Slug penetrates Scanalyzer. 17956_ Penetrated by Slug. 17960_ Slug penetrates Wall. 17962_ Penetrated by Slug. 17965_ H-66 Slayer destroyed. 17965_ Adv. Visual Processing Unit melted. 17965_ X-62 Marksman destroyed. 17967_ Slug penetrates Wall. 17971_ Penetrated by Slug. 17972_ System corrupted: Heat flow error (+207). 17973_ ALERT: Potential suspicious activity detected, Programmers report to Factory Zone 4U. 17974_ Penetrated by Slug. Map ----- +----------------------------------------------------+ | ?????????????????????????????????????????????????? | | ?????????????????????????????????????????????????? | | ?????????????????????????????????????????????????? | | ?????????????????????????????????????????????????? | | ?????????????????????????????????????????????????? | | ?????????????????????????????????????????????????? | | ?????????????????????????????????????????????????? | | ??????????######+#+??????????????????????????????? | | ???????? #?????????????????????????????? | | ??????? #?????????????????????????????? | | ??????? #?????????????????????????????? | | ???????"" #?????????????????????????????? | | ???????"" #?????????????????????????????? | | ???????"" #?????????????????????????????? | | ???????"" ##########????????????????????? | | ??????""" ?????????????????????? | | ??????""" ???????????????????????? | | ?????? ????????H????????????????? | | ????"""" ???????????????????????????? | | ? ??"""" ?? ???????????????????########### | | """" #####+####??????###+#??????# # | | """" # #????? ???????# # | | """ # ! #?????""""" ## # | | % """ # #???? ""T"" ## # | | ! / % "" %##### ## " # | | ! """ # """h/= @= ## # | | """ # S"[##### ]!! ## # | | """ # """=#???? ]!! ## # | | % """ # ""%#????? ]!! Y# # | | !% """" # =#????? #### ### | | """" ##############??"""""""" #??# #?? | | #??# #?? ??#??# ### | | " "" #??# #??? ?????# # | | """" #??# #???#######?????# # | | """" #??# #???????????????# # | | """ #########+#################### # | | """" = % % %/ # | | """" # | | # | | + | | # | | ##+###################+##+######### # | | ! #????????# # # # | | #????????# # # # | | """ """" #????????# # + # | | """ """" #????????# # # + | | """ """" #????????# # # ### | | """%"""" #????????# #"""" # #?? | | % #????????# #"""" ##########+##### | | """ """" #????????# #"""" #???# ! | +----------------------------------------------------+ Best States ------------- Heat Dissipation 97 Energy Generation 31 Energy Capacity 490 Matter Stores 300 Matter Capacity 300 Sight Range 16 Robot Scan Range 15 Terrain Scan Range 20 Terrain Scan Density 10 ECM Strength 2 Base Temperature (-) 150 EM Shielding 4 Armor Coverage 450 Resistance: KI 35 Resistance: TH 35 Resistance: EX 35 Resistance: EM 60 Resistance: I 35 Resistance: S 35 Resistance: P 35 Evasion (%) 50 Recoil Reduction 5 Offensive Hacking 20 Item Schematics ----------------- Adv. Terrain Scan Processor | -9/Recycling | Hacked Imp. Terrain Scanner | -9/Recycling | Hacked Com. Battery | -9/Recycling | Hacked Imp. Signal Interpreter | -9/Recycling | Hacked Spread Laser | -9/Recycling | Hacked Shock Bomb Launcher | -9/Recycling | Hacked Mak. System Shield | -6/Factory | Scanalyzed System Restoration Module | -6/Factory | Scanalyzed Imp. Force Field | -6/Factory | Hacked Robot Schematics ------------------ None Fabricated ------------ Nothing Repaired ---------- Imp. Medium Treads | 12% | -6/Factory Studied --------- None Alien Tech Used ----------------- None Achievements -------------- None Challenges ------------ None Game ------ Seed QuantumTrapDetonator Manual? 0 Play Time 01:11:00 Cumulative 287.3 hours Start 2026.01.16 @ 11:06:55 End 2026.01.16 @ 12:17:31 Sessions 1 Manual Loads 0 Difficulty Explorer Special Mode None Game No. 444 Rogue 0 Adventurer 0 Explorer 444 Win Type - Total 0 Types 0/0/0/0/0/0/0/0/0/0 Lore% 75 Gallery% 69 Achievement% 55 Wizard Run 0 Options --------- Layout 1 ASCII 0 Keyboard 0 Movement Mouse Keybinds 1 Fullscreen 1 Font 24/Smallcaps Map View 50x35 Zoom Use 0% Tactical HUD 1 Map Filters NONE Filters NONE Steam 1 RUN: f80bef04-6e39-4f3e-a5d3-56d2417857b6